[Event "*** Titled Tuesday Blitz"]
[Site "Chess.com"]
[Date "2020.04.14"]
[Round "4"]
[White "kagg1125"]
[Black "nonscitis"]
[Result "1-0"]
[WhiteElo "2522"]
[BlackElo "2665"]
[TimeControl "180+1"]
[EndTime "10:41:26 PDT"]
[Termination "kagg1125 won on time"]

1. e4 {[%clk 0:03:00]} 1... e5 {[%clk 0:02:59]} 2. Nf3 {[%clk 0:02:59.9]} 2...
Nc6 {[%clk 0:02:59.2]} 3. Bb5 {[%clk 0:03:00.1]} 3... a6 {[%clk 0:02:58.5]} 4.
Ba4 {[%clk 0:03:00.3]} 4... Nf6 {[%clk 0:02:57.9]} 5. O-O {[%clk 0:02:58.8]}
5... Bc5 {[%clk 0:02:57.5]} 6. c3 {[%clk 0:02:52.3]} 6... O-O {[%clk 0:02:54.2]}
7. d4 {[%clk 0:02:51.6]} 7... Ba7 {[%clk 0:02:53.9]} 8. Bg5 {[%clk 0:02:50.6]}
8... d6 {[%clk 0:02:19.4]} 9. Nbd2 {[%clk 0:02:38]} 9... h6 {[%clk 0:02:16.1]}
10. Bh4 {[%clk 0:02:37]} 10... b5 {[%clk 0:02:01.7]} 11. Bb3 {[%clk 0:02:28.6]}
11... Bb7 {[%clk 0:02:00.8]} 12. dxe5 {[%clk 0:02:11.5]} 12... Nxe5 {[%clk
0:01:59.1]} 13. Re1 {[%clk 0:02:03.7]} 13... Nd3 {[%clk 0:01:52.4]} 14. Re2
{[%clk 0:01:59.6]} 14... Nf4 {[%clk 0:01:51.3]} 15. Re1 {[%clk 0:01:56.8]} 15...
Ng6 {[%clk 0:01:49.5]} 16. Bg3 {[%clk 0:01:55.1]} 16... Nh5 {[%clk 0:01:48.4]}
17. Nd4 {[%clk 0:01:47.2]} 17... Nxg3 {[%clk 0:01:43.8]} 18. hxg3 {[%clk
0:01:48.1]} 18... Qf6 {[%clk 0:01:42.4]} 19. N2f3 {[%clk 0:01:44.3]} 19... Rfe8
{[%clk 0:01:16.1]} 20. Qc2 {[%clk 0:01:18.2]} 20... Ne5 {[%clk 0:01:06.6]} 21.
a4 {[%clk 0:01:07.4]} 21... c6 {[%clk 0:00:57.5]} 22. axb5 {[%clk 0:01:03.4]}
22... axb5 {[%clk 0:00:57]} 23. Ra2 {[%clk 0:00:52.1]} 23... Bb6 {[%clk
0:00:51.9]} 24. Rxa8 {[%clk 0:00:35.8]} 24... Rxa8 {[%clk 0:00:52.8]} 25. Nxe5
{[%clk 0:00:35.1]} 25... dxe5 {[%clk 0:00:50.8]} 26. Nf3 {[%clk 0:00:34.1]}
26... g6 {[%clk 0:00:40.5]} 27. c4 {[%clk 0:00:34.1]} 27... bxc4 {[%clk
0:00:26.7]} 28. Bxc4 {[%clk 0:00:31.1]} 28... Kg7 {[%clk 0:00:23.3]} 29. Rd1
{[%clk 0:00:30.4]} 29... Rd8 {[%clk 0:00:20.7]} 30. Rxd8 {[%clk 0:00:29.9]}
30... Bxd8 {[%clk 0:00:21.6]} 31. Qc3 {[%clk 0:00:29.1]} 31... Bc7 {[%clk
0:00:19.9]} 32. b4 {[%clk 0:00:28]} 32... Bc8 {[%clk 0:00:19.7]} 33. Bb3 {[%clk
0:00:25.3]} 33... Qe7 {[%clk 0:00:19.2]} 34. Nd2 {[%clk 0:00:21.3]} 34... Bd6
{[%clk 0:00:19]} 35. b5 {[%clk 0:00:21.5]} 35... Bb4 {[%clk 0:00:16.7]} 36. Qxc6
{[%clk 0:00:21.7]} 36... Bb7 {[%clk 0:00:13.8]} 37. Qc2 {[%clk 0:00:21.2]} 37...
Bxd2 {[%clk 0:00:11.7]} 38. Qxd2 {[%clk 0:00:22.1]} 38... Bxe4 {[%clk
0:00:12.3]} 39. Qe3 {[%clk 0:00:21.4]} 39... Qb4 {[%clk 0:00:10.8]} 40. b6
{[%clk 0:00:19.9]} 40... f6 {[%clk 0:00:07.9]} 41. Kh2 {[%clk 0:00:18.9]} 41...
g5 {[%clk 0:00:07.6]} 42. f3 {[%clk 0:00:18.6]} 42... Bf5 {[%clk 0:00:06.7]} 43.
g4 {[%clk 0:00:18.7]} 43... Bd7 {[%clk 0:00:06.5]} 44. Bc2 {[%clk 0:00:18.4]}
44... Bc6 {[%clk 0:00:06]} 45. Qd3 {[%clk 0:00:15.5]} 45... Qxb6 {[%clk
0:00:04.4]} 46. Qh7+ {[%clk 0:00:15.7]} 46... Kf8 {[%clk 0:00:04.4]} 47. Qxh6+
{[%clk 0:00:16.2]} 47... Ke7 {[%clk 0:00:04.5]} 48. Qg7+ {[%clk 0:00:16.6]}
48... Ke6 {[%clk 0:00:04.6]} 49. Bf5+ {[%clk 0:00:17.1]} 49... Kd6 {[%clk
0:00:04.8]} 50. Qxf6+ {[%clk 0:00:17.5]} 50... Kc5 {[%clk 0:00:04.9]} 51. Qxg5
{[%clk 0:00:18]} 51... Bd5 {[%clk 0:00:05.3]} 52. Qe3+ {[%clk 0:00:18]} 52...
Kb5 {[%clk 0:00:05.5]} 53. Qxb6+ {[%clk 0:00:17.8]} 53... Kxb6 {[%clk
0:00:06.4]} 54. g5 {[%clk 0:00:17.9]} 54... Kc7 {[%clk 0:00:06.7]} 55. Kh3
{[%clk 0:00:18]} 55... Kd8 {[%clk 0:00:06.9]} 56. Be4 {[%clk 0:00:18.2]} 56...
Be6+ {[%clk 0:00:06]} 57. Kh4 {[%clk 0:00:18.6]} 57... Ke7 {[%clk 0:00:06.2]}
58. Kh5 {[%clk 0:00:18.3]} 58... Kf7 {[%clk 0:00:06.3]} 59. g3 {[%clk
0:00:18.5]} 59... Kg7 {[%clk 0:00:06.1]} 60. f4 {[%clk 0:00:18.8]} 60... exf4
{[%clk 0:00:05.2]} 61. gxf4 {[%clk 0:00:19.7]} 61... Bf7+ {[%clk 0:00:06.1]} 62.
g6 {[%clk 0:00:18.2]} 62... Be8 {[%clk 0:00:05.7]} 63. Kg5 {[%clk 0:00:17.9]}
1-0

[Event "*** Titled Tuesday Blitz"]
[Site "Chess.com"]
[Date "2020.04.14"]
[Round "4"]
[White "Alexander_Donchenko"]
[Black "TomsKantans"]
[Result "0-1"]
[WhiteElo "2850"]
[BlackElo "2675"]
[TimeControl "180+1"]
[EndTime "10:41:28 PDT"]
[Termination "TomsKantans won by checkmate"]

1. Nf3 {[%clk 0:03:00.9]} 1... c5 {[%clk 0:02:59.1]} 2. c4 {[%clk 0:03:00.6]}
2... Nc6 {[%clk 0:02:58.9]} 3. Nc3 {[%clk 0:03:01.2]} 3... g6 {[%clk 0:02:56.4]}
4. e3 {[%clk 0:03:01.5]} 4... Nf6 {[%clk 0:02:56.2]} 5. d4 {[%clk 0:03:02.1]}
5... cxd4 {[%clk 0:02:56.8]} 6. exd4 {[%clk 0:03:03]} 6... d5 {[%clk 0:02:57.4]}
7. cxd5 {[%clk 0:03:03.9]} 7... Nxd5 {[%clk 0:02:58.1]} 8. Qb3 {[%clk
0:03:04.5]} 8... e6 {[%clk 0:02:58]} 9. Bb5 {[%clk 0:03:04.7]} 9... Bg7 {[%clk
0:02:55.7]} 10. O-O {[%clk 0:03:05.2]} 10... O-O {[%clk 0:02:55.5]} 11. Bxc6
{[%clk 0:03:05.8]} 11... bxc6 {[%clk 0:02:56.4]} 12. Re1 {[%clk 0:03:06.3]}
12... Qb6 {[%clk 0:02:52.6]} 13. Ne4 {[%clk 0:02:56]} 13... Ba6 {[%clk 0:01:54]}
14. Nc5 {[%clk 0:02:53.1]} 14... Bxd4 {[%clk 0:01:30.1]} 15. Qxb6 {[%clk
0:02:51.4]} 15... axb6 {[%clk 0:01:26.7]} 16. Nxd4 {[%clk 0:02:42]} 16... bxc5
{[%clk 0:01:26.6]} 17. Nxc6 {[%clk 0:02:42.2]} 17... Bb5 {[%clk 0:01:09.7]} 18.
Ne5 {[%clk 0:02:39.8]} 18... f6 {[%clk 0:01:09.8]} 19. Ng4 {[%clk 0:02:33.1]}
19... Kf7 {[%clk 0:01:00.4]} 20. a3 {[%clk 0:02:23.5]} 20... Bd3 {[%clk
0:00:50.1]} 21. Be3 {[%clk 0:01:03.9]} 21... c4 {[%clk 0:00:40.2]} 22. Nh6+
{[%clk 0:00:32.3]} 22... Kg7 {[%clk 0:00:34.1]} 23. Ng4 {[%clk 0:00:32.9]} 23...
Rfb8 {[%clk 0:00:33.7]} 24. Bd4 {[%clk 0:00:29.9]} 24... Rb3 {[%clk 0:00:13.7]}
25. Rxe6 {[%clk 0:00:20.9]} 25... Bf5 {[%clk 0:00:13.4]} 26. Rd6 {[%clk
0:00:19.4]} 26... Bxg4 {[%clk 0:00:09.8]} 27. Rxd5 {[%clk 0:00:19.6]} 27... Re8
{[%clk 0:00:07.8]} 28. h3 {[%clk 0:00:15.2]} 28... Bf5 {[%clk 0:00:07.7]} 29.
Rd6 {[%clk 0:00:14.1]} 29... Re6 {[%clk 0:00:07.1]} 30. Rxe6 {[%clk 0:00:14.2]}
30... Bxe6 {[%clk 0:00:08]} 31. Bc3 {[%clk 0:00:13.3]} 31... Rb6 {[%clk
0:00:04.2]} 32. a4 {[%clk 0:00:13.6]} 32... Rd6 {[%clk 0:00:04.1]} 33. a5 {[%clk
0:00:13.9]} 33... Bc8 {[%clk 0:00:04.8]} 34. Re1 {[%clk 0:00:12.5]} 34... Kf7
{[%clk 0:00:04.3]} 35. f3 {[%clk 0:00:12.8]} 35... h5 {[%clk 0:00:03.4]} 36. Kf2
{[%clk 0:00:13.1]} 36... Bb7 {[%clk 0:00:02.2]} 37. Ra1 {[%clk 0:00:11.8]} 37...
Ba6 {[%clk 0:00:02.5]} 38. Ra4 {[%clk 0:00:11.8]} 38... Ke6 {[%clk 0:00:02.7]}
39. Rb4 {[%clk 0:00:11.4]} 39... g5 {[%clk 0:00:02.5]} 40. Rb8 {[%clk
0:00:10.4]} 40... h4 {[%clk 0:00:02.5]} 41. Re8+ {[%clk 0:00:09.4]} 41... Kf5
{[%clk 0:00:02.5]} 42. Ke2 {[%clk 0:00:04.2]} 42... Bb5 {[%clk 0:00:02.1]} 43.
Rb8 {[%clk 0:00:03.9]} 43... Ba6 {[%clk 0:00:02.5]} 44. Ra8 {[%clk 0:00:03.6]}
44... Re6+ {[%clk 0:00:02.4]} 45. Kd2 {[%clk 0:00:03.4]} 45... Rd6+ {[%clk
0:00:03.3]} 46. Kc2 {[%clk 0:00:04]} 46... Bb5 {[%clk 0:00:03.9]} 47. Rc8 {[%clk
0:00:04.3]} 47... Ba4+ {[%clk 0:00:03.2]} 48. Kb1 {[%clk 0:00:03.5]} 48... Bb3
{[%clk 0:00:01.7]} 49. Bd2 {[%clk 0:00:01.2]} 49... Rxd2 {[%clk 0:00:01.4]} 50.
Rxc4 {[%clk 0:00:01.6]} 50... Bxc4 {[%clk 0:00:01]} 51. b4 {[%clk 0:00:01.1]}
51... Rd6 {[%clk 0:00:01.9]} 52. Kc2 {[%clk 0:00:01.4]} 52... Bb5 {[%clk
0:00:02.8]} 53. Kc3 {[%clk 0:00:02.3]} 53... Rc6+ {[%clk 0:00:03.3]} 54. Kd4
{[%clk 0:00:03.2]} 54... Rd6+ {[%clk 0:00:04.1]} 55. Kc5 {[%clk 0:00:03.4]}
55... Rd2 {[%clk 0:00:04.5]} 56. Kxb5 {[%clk 0:00:04.3]} 56... Rxg2 {[%clk
0:00:05.4]} 57. a6 {[%clk 0:00:04.7]} 57... Ra2 {[%clk 0:00:05.1]} 58. Kb6
{[%clk 0:00:05]} 58... Kf4 {[%clk 0:00:05.5]} 59. b5 {[%clk 0:00:05.5]} 59...
Kxf3 {[%clk 0:00:05.5]} 60. a7 {[%clk 0:00:05.4]} 60... g4 {[%clk 0:00:06.4]}
61. Kb7 {[%clk 0:00:02.8]} 61... gxh3 {[%clk 0:00:06.2]} 62. a8=Q {[%clk
0:00:03.7]} 62... Rxa8 {[%clk 0:00:05.6]} 63. Kxa8 {[%clk 0:00:04.6]} 63... h2
{[%clk 0:00:06.4]} 64. b6 {[%clk 0:00:05.5]} 64... h1=Q {[%clk 0:00:07.2]} 65.
b7 {[%clk 0:00:06.4]} 65... Qa1+ {[%clk 0:00:07.5]} 66. Kb8 {[%clk 0:00:06.7]}
66... Qe5+ {[%clk 0:00:07.7]} 67. Kc8 {[%clk 0:00:07.6]} 67... Qc5+ {[%clk
0:00:07.7]} 68. Kd7 {[%clk 0:00:07.6]} 68... Qb6 {[%clk 0:00:06.9]} 69. Kc8
{[%clk 0:00:08.5]} 69... h3 {[%clk 0:00:07.5]} 70. b8=Q {[%clk 0:00:08.5]} 70...
Qxb8+ {[%clk 0:00:07.7]} 71. Kxb8 {[%clk 0:00:09.4]} 71... h2 {[%clk 0:00:08.5]}
72. Kc7 {[%clk 0:00:10.3]} 72... h1=Q {[%clk 0:00:09.4]} 73. Kd6 {[%clk
0:00:11.2]} 73... f5 {[%clk 0:00:10]} 74. Ke7 {[%clk 0:00:12.1]} 74... f4 {[%clk
0:00:10.9]} 75. Kf6 {[%clk 0:00:13]} 75... Qh3 {[%clk 0:00:10.9]} 76. Ke5 {[%clk
0:00:13.9]} 76... Qg4 {[%clk 0:00:11.8]} 77. Kd4 {[%clk 0:00:14.6]} 77... Kg3
{[%clk 0:00:12.7]} 78. Kd3 {[%clk 0:00:15.4]} 78... f3 {[%clk 0:00:13.6]} 79.
Kd2 {[%clk 0:00:16.2]} 79... Qe4 {[%clk 0:00:13.8]} 80. Kd1 {[%clk 0:00:16.2]}
80... f2 {[%clk 0:00:14.7]} 81. Kd2 {[%clk 0:00:16.9]} 81... Kf3 {[%clk
0:00:14.8]} 82. Kc3 {[%clk 0:00:17.8]} 82... f1=Q {[%clk 0:00:14.8]} 83. Kb2
{[%clk 0:00:18.7]} 83... Qfd3 {[%clk 0:00:14.3]} 84. Ka2 {[%clk 0:00:18.8]}
84... Qee2+ {[%clk 0:00:14.5]} 85. Ka1 {[%clk 0:00:19.7]} 85... Qdd1# {[%clk
0:00:15.4]} 0-1

[Event "*** Titled Tuesday Blitz"]
[Site "Chess.com"]
[Date "2020.04.14"]
[Round "4"]
[White "Angry_Twin"]
[Black "Mr_Sinigami"]
[Result "1-0"]
[WhiteElo "2830"]
[BlackElo "2578"]
[TimeControl "180+1"]
[EndTime "10:41:33 PDT"]
[Termination "Angry_Twin won by resignation"]

1. e4 {[%clk 0:03:00.9]} 1... c5 {[%clk 0:03:00.2]} 2. Nf3 {[%clk 0:03:00.7]}
2... Nc6 {[%clk 0:03:00.5]} 3. Bb5 {[%clk 0:03:00.2]} 3... g6 {[%clk 0:03:00.8]}
4. Bxc6 {[%clk 0:02:58.4]} 4... bxc6 {[%clk 0:03:01.7]} 5. O-O {[%clk
0:02:57.8]} 5... Bg7 {[%clk 0:03:02.3]} 6. Re1 {[%clk 0:02:58.4]} 6... Nh6
{[%clk 0:03:00.6]} 7. c3 {[%clk 0:02:56.2]} 7... O-O {[%clk 0:02:59.2]} 8. h3
{[%clk 0:02:56.2]} 8... f5 {[%clk 0:02:57.6]} 9. e5 {[%clk 0:02:55.3]} 9... Nf7
{[%clk 0:02:54.9]} 10. d3 {[%clk 0:02:53.6]} 10... Ba6 {[%clk 0:02:36.2]} 11.
Bf4 {[%clk 0:02:50]} 11... h6 {[%clk 0:02:30.2]} 12. h4 {[%clk 0:02:49.1]} 12...
c4 {[%clk 0:02:02.3]} 13. d4 {[%clk 0:02:46.3]} 13... c5 {[%clk 0:01:59.6]} 14.
d5 {[%clk 0:02:39.3]} 14... e6 {[%clk 0:01:59.8]} 15. Na3 {[%clk 0:02:33.6]}
15... g5 {[%clk 0:01:45.9]} 16. Be3 {[%clk 0:02:09.1]} 16... g4 {[%clk
0:01:40.2]} 17. Nd2 {[%clk 0:01:24.6]} 17... Qxh4 {[%clk 0:01:27.5]} 18. Bxc5
{[%clk 0:01:19.8]} 18... Rfc8 {[%clk 0:01:16.5]} 19. Bd4 {[%clk 0:01:16.8]}
19... Bb7 {[%clk 0:00:31]} 20. dxe6 {[%clk 0:01:06.2]} 20... dxe6 {[%clk
0:00:31.9]} 21. Naxc4 {[%clk 0:01:04.4]} 21... g3 {[%clk 0:00:19.1]} 22. fxg3
{[%clk 0:00:57.2]} 22... Qxg3 {[%clk 0:00:20]} 23. Qe2 {[%clk 0:00:56.4]} 23...
Ba6 {[%clk 0:00:14.5]} 24. b3 {[%clk 0:00:55.7]} 24... Ng5 {[%clk 0:00:11.6]}
25. Nf1 {[%clk 0:00:53.3]} 25... Qh4 {[%clk 0:00:06.4]} 26. Qf2 {[%clk
0:00:36.7]} 26... Qh5 {[%clk 0:00:05.4]} 27. Nd6 {[%clk 0:00:33.2]} 27... Rf8
{[%clk 0:00:05.6]} 28. Qf4 {[%clk 0:00:19.4]} 28... Qg6 {[%clk 0:00:05]} 29. Kh1
{[%clk 0:00:16.7]} 29... Rad8 {[%clk 0:00:04.7]} 30. Ne3 {[%clk 0:00:16.4]}
30... Ne4 {[%clk 0:00:04.9]} 31. Nxe4 {[%clk 0:00:14.6]} 31... fxe4 {[%clk
0:00:05.8]} 32. Qg4 {[%clk 0:00:15.2]} 32... Qxg4 {[%clk 0:00:05]} 33. Nxg4
{[%clk 0:00:16.1]} 33... Bd3 {[%clk 0:00:05.7]} 34. Nf6+ {[%clk 0:00:15.9]}
34... Bxf6 {[%clk 0:00:05.9]} 35. exf6 {[%clk 0:00:16.8]} 35... Rd5 {[%clk
0:00:06.6]} 36. Kg1 {[%clk 0:00:16.2]} 36... e5 {[%clk 0:00:07]} 37. Be3 {[%clk
0:00:16.7]} 37... Rxf6 {[%clk 0:00:07.6]} 38. c4 {[%clk 0:00:17.3]} 38... Rd7
{[%clk 0:00:07.8]} 39. Rad1 {[%clk 0:00:16.9]} 39... Rg6 {[%clk 0:00:07.4]} 40.
c5 {[%clk 0:00:16.4]} 40... Rdg7 {[%clk 0:00:07.3]} 41. Rd2 {[%clk 0:00:16.8]}
41... Kf7 {[%clk 0:00:07.7]} 42. Rc1 {[%clk 0:00:16.8]} 42... Ke6 {[%clk
0:00:08]} 43. c6 {[%clk 0:00:17]} 43... Rc7 {[%clk 0:00:08]} 44. Bxa7 {[%clk
0:00:10.8]} 44... Kd6 {[%clk 0:00:05.4]} 45. Bb8 {[%clk 0:00:10]} 45... Rg8
{[%clk 0:00:05.9]} 46. Bxc7+ {[%clk 0:00:09.8]} 46... Kxc7 {[%clk 0:00:06.8]}
47. Kf2 {[%clk 0:00:09.7]} 47... Ra8 {[%clk 0:00:06.2]} 48. Ke3 {[%clk
0:00:09.4]} 48... Rg8 {[%clk 0:00:07.1]} 49. b4 {[%clk 0:00:07.2]} 49... h5
{[%clk 0:00:07.6]} 50. Kf2 {[%clk 0:00:07.1]} 50... h4 {[%clk 0:00:08.1]} 51.
Rh1 {[%clk 0:00:06.9]} 51... Rf8+ {[%clk 0:00:07.4]} 52. Ke3 {[%clk 0:00:07]}
52... Rf4 {[%clk 0:00:06.1]} 53. Rh3 {[%clk 0:00:07.3]} 53... Rg4 {[%clk
0:00:06.1]} 54. a4 {[%clk 0:00:07.2]} 54... Kxc6 {[%clk 0:00:06.3]} 55. Rf2
{[%clk 0:00:07.5]} 55... Kd5 {[%clk 0:00:06.2]} 56. Rb2 {[%clk 0:00:04.6]} 56...
Kc6 {[%clk 0:00:04.4]} 57. b5+ {[%clk 0:00:04.2]} 57... Kb6 {[%clk 0:00:04.8]}
58. a5+ {[%clk 0:00:04.8]} 58... Kxa5 {[%clk 0:00:05.1]} 59. b6 {[%clk
0:00:05.2]} 59... Rg8 {[%clk 0:00:05.5]} 60. b7 {[%clk 0:00:05.7]} 60... Rb8
{[%clk 0:00:05.5]} 61. Rxh4 {[%clk 0:00:06.6]} 61... Ka6 {[%clk 0:00:06]} 62.
Rh6+ {[%clk 0:00:06.9]} 62... Ka7 {[%clk 0:00:06.2]} 63. Rh7 {[%clk 0:00:07.8]}
63... Ba6 {[%clk 0:00:06.5]} 64. Re7 {[%clk 0:00:08]} 64... Bxb7 {[%clk
0:00:06.4]} 65. Rxe5 {[%clk 0:00:07.8]} 65... Ka6 {[%clk 0:00:06.1]} 66. Re6+
{[%clk 0:00:07.6]} 66... Ka5 {[%clk 0:00:05.8]} 67. Reb6 {[%clk 0:00:08.5]} 1-0

[Event "*** Titled Tuesday Blitz"]
[Site "Chess.com"]
[Date "2020.04.14"]
[Round "4"]
[White "SHIVACalypso"]
[Black "LogoCzar"]
[Result "1/2-1/2"]
[WhiteElo "2257"]
[BlackElo "2436"]
[TimeControl "180+1"]
[EndTime "10:41:34 PDT"]
[Termination "Game drawn by repetition"]

1. Nf3 {[%clk 0:03:00.9]} 1... d5 {[%clk 0:02:58.2]} 2. c4 {[%clk 0:03:01.5]}
2... d4 {[%clk 0:02:58.2]} 3. e3 {[%clk 0:03:00.8]} 3... c5 {[%clk 0:02:58.2]}
4. exd4 {[%clk 0:03:00.3]} 4... cxd4 {[%clk 0:02:58.6]} 5. b4 {[%clk 0:03:00.8]}
5... f6 {[%clk 0:02:58.6]} 6. c5 {[%clk 0:02:51.1]} 6... e5 {[%clk 0:02:56.9]}
7. d3 {[%clk 0:02:51.2]} 7... a5 {[%clk 0:02:56.7]} 8. Qa4+ {[%clk 0:02:45.2]}
8... Bd7 {[%clk 0:02:54]} 9. b5 {[%clk 0:02:33.2]} 9... Bxc5 {[%clk 0:02:51.7]}
10. Be2 {[%clk 0:02:16.5]} 10... Qb6 {[%clk 0:02:50.5]} 11. Na3 {[%clk
0:02:14.9]} 11... Bb4+ {[%clk 0:02:42]} 12. Nd2 {[%clk 0:02:11.4]} 12... Ne7
{[%clk 0:02:26.4]} 13. O-O {[%clk 0:02:08.5]} 13... Bxa3 {[%clk 0:02:24.1]} 14.
Bxa3 {[%clk 0:02:05.2]} 14... Qxb5 {[%clk 0:02:19.8]} 15. Qc2 {[%clk 0:02:05.3]}
15... Nbc6 {[%clk 0:02:13.2]} 16. Ne4 {[%clk 0:01:51.5]} 16... O-O {[%clk
0:02:09.5]} 17. Nd6 {[%clk 0:01:48.2]} 17... Nb4 {[%clk 0:02:01.3]} 18. Nxb5
{[%clk 0:01:14.3]} 18... Nxc2 {[%clk 0:01:59.5]} 19. Bxe7 {[%clk 0:01:14.4]}
19... Nxa1 {[%clk 0:01:49.9]} 20. Bxf8 {[%clk 0:01:04.4]} 20... Bxb5 {[%clk
0:01:35.6]} 21. Rxa1 {[%clk 0:00:43.2]} 21... Kxf8 {[%clk 0:01:31.7]} 22. Rb1
{[%clk 0:00:44.1]} 22... Bc6 {[%clk 0:01:30.2]} 23. Kf1 {[%clk 0:00:35.4]} 23...
Ke7 {[%clk 0:01:28.9]} 24. g3 {[%clk 0:00:35.3]} 24... Kd6 {[%clk 0:01:28.2]}
25. Ke1 {[%clk 0:00:35.7]} 25... Bd5 {[%clk 0:01:27]} 26. Rb2 {[%clk 0:00:33]}
26... Rc8 {[%clk 0:01:18.7]} 27. Kd2 {[%clk 0:00:32.8]} 27... Rc3 {[%clk
0:01:15.8]} 28. Bd1 {[%clk 0:00:28.3]} 28... Ra3 {[%clk 0:01:13.3]} 29. Bb3
{[%clk 0:00:25.3]} 29... Bxb3 {[%clk 0:01:05.5]} 30. axb3 {[%clk 0:00:26.2]}
30... b5 {[%clk 0:01:02.4]} 31. f4 {[%clk 0:00:21.2]} 31... exf4 {[%clk
0:01:01]} 32. gxf4 {[%clk 0:00:22.1]} 32... b4 {[%clk 0:01:01]} 33. Kc2 {[%clk
0:00:18.4]} 33... a4 {[%clk 0:01:00.2]} 34. bxa4 {[%clk 0:00:17.8]} 34... Rxa4
{[%clk 0:01:00.3]} 35. Kb3 {[%clk 0:00:16.3]} 35... Ra3+ {[%clk 0:00:59.3]} 36.
Kc4 {[%clk 0:00:16]} 36... b3 {[%clk 0:00:50.7]} 37. Kxd4 {[%clk 0:00:16]} 37...
Ra2 {[%clk 0:00:48.3]} 38. Rxb3 {[%clk 0:00:14.6]} 38... Rxh2 {[%clk 0:00:47.7]}
39. Rb6+ {[%clk 0:00:14.8]} 39... Ke7 {[%clk 0:00:45.8]} 40. Rb7+ {[%clk
0:00:14.8]} 40... Kf8 {[%clk 0:00:46]} 41. Kd5 {[%clk 0:00:13.9]} 41... Rh5+
{[%clk 0:00:44.7]} 42. Ke6 {[%clk 0:00:12.6]} 42... g6 {[%clk 0:00:36.1]} 43.
Kxf6 {[%clk 0:00:12.4]} 43... Rf5+ {[%clk 0:00:35.1]} 44. Ke6 {[%clk 0:00:12.1]}
44... h5 {[%clk 0:00:25.6]} 45. d4 {[%clk 0:00:11.6]} 45... Rxf4 {[%clk
0:00:23.5]} 46. d5 {[%clk 0:00:12.2]} 46... Re4+ {[%clk 0:00:23.5]} 47. Kf6
{[%clk 0:00:11.3]} 47... Ke8 {[%clk 0:00:22.1]} 48. Kxg6 {[%clk 0:00:09.9]}
48... h4 {[%clk 0:00:21.7]} 49. Rh7 {[%clk 0:00:08.5]} 49... Rd4 {[%clk
0:00:17.5]} 50. Kf6 {[%clk 0:00:07.3]} 50... Rxd5 {[%clk 0:00:15.8]} 51. Rxh4
{[%clk 0:00:07.4]} 51... Kd7 {[%clk 0:00:15.8]} 52. Rf4 {[%clk 0:00:06.2]} 52...
Kc6 {[%clk 0:00:15.2]} 53. Rf5 {[%clk 0:00:06.5]} 53... Rd1 {[%clk 0:00:14.9]}
54. Kg5 {[%clk 0:00:06.6]} 54... Kd6 {[%clk 0:00:15.1]} 55. Rf6+ {[%clk
0:00:06.7]} 55... Ke7 {[%clk 0:00:15.3]} 56. Rf5 {[%clk 0:00:07.6]} 56... Ke6
{[%clk 0:00:15.5]} 57. Rf2 {[%clk 0:00:07.1]} 57... Rg1+ {[%clk 0:00:15]} 58.
Kf4 {[%clk 0:00:07.2]} 58... Rg8 {[%clk 0:00:14.7]} 59. Ke3 {[%clk 0:00:08.1]}
59... Ke5 {[%clk 0:00:15]} 60. Kf3 {[%clk 0:00:08.6]} 60... Kf5 {[%clk
0:00:14.1]} 61. Ke2+ {[%clk 0:00:08.6]} 61... Ke4 {[%clk 0:00:14.4]} 62. Rf7
{[%clk 0:00:08.4]} 62... Ra8 {[%clk 0:00:14.6]} 63. Re7+ {[%clk 0:00:08.4]}
63... Kd5 {[%clk 0:00:14.9]} 64. Rd7+ {[%clk 0:00:08.9]} 64... Ke6 {[%clk
0:00:15.2]} 65. Rh7 {[%clk 0:00:09.4]} 65... Kf5 {[%clk 0:00:15.2]} 66. Rh3
{[%clk 0:00:09.8]} 66... Kg4 {[%clk 0:00:15.2]} 67. Rb3 {[%clk 0:00:10.1]} 67...
Kf4 {[%clk 0:00:14.5]} 68. Kd3 {[%clk 0:00:11]} 68... Rd8+ {[%clk 0:00:13.7]}
69. Kc4 {[%clk 0:00:11.9]} 69... Ke4 {[%clk 0:00:14.1]} 70. Kb4 {[%clk
0:00:12.8]} 70... Kd4 {[%clk 0:00:13.7]} 71. Ka3 {[%clk 0:00:13.3]} 71... Kc4
{[%clk 0:00:12.9]} 72. Rb4+ {[%clk 0:00:13.8]} 72... Kc5 {[%clk 0:00:13.1]} 73.
Rb3 {[%clk 0:00:13]} 73... Rd2 {[%clk 0:00:12.5]} 74. Rb2 {[%clk 0:00:13]} 74...
Rd3+ {[%clk 0:00:12.3]} 75. Rb3 {[%clk 0:00:13.3]} 75... Rd1 {[%clk 0:00:12.2]}
76. Kb2 {[%clk 0:00:13]} 76... Kc4 {[%clk 0:00:10.9]} 77. Rc3+ {[%clk
0:00:13.4]} 77... Kd4 {[%clk 0:00:10.6]} 78. Rc1 {[%clk 0:00:13.8]} 78... Rd2+
{[%clk 0:00:10.4]} 79. Rc2 {[%clk 0:00:14.2]} 79... Rd3 {[%clk 0:00:10.5]} 80.
Rc8 {[%clk 0:00:12.9]} 80... Rh3 {[%clk 0:00:10]} 81. Rd8+ {[%clk 0:00:12.5]}
81... Kc4 {[%clk 0:00:10.3]} 82. Rc8+ {[%clk 0:00:12.8]} 82... Kb4 {[%clk
0:00:10.5]} 83. Rb8+ {[%clk 0:00:13.3]} 83... Kc4 {[%clk 0:00:10.8]} 84. Rc8+
{[%clk 0:00:13.6]} 84... Kb4 {[%clk 0:00:11.1]} 85. Rb8+ {[%clk 0:00:14]} 85...
Kc4 {[%clk 0:00:11.5]} 86. Rc8+ {[%clk 0:00:14.6]} 1/2-1/2